[Event "Titled Tuesday Blitz April 18 Late 2023"]
[White "Lorenzo De La Riva, Lazaro"]
[Black "Bilych, Olexiy"]
[WhiteFideId "2268809"]
[BlackFideId "14156504"]
[WhiteElo "2294"]
[BlackElo "2320"]
[Result "0-1"]
[Round "11"]
[TimeControl "180+2"]
[Date "2023.04.18"]
[WhiteClock "0:00:01"]
[BlackClock "0:00:15"]

1. Nf3 {[%clk 0:03:00]}  d5 {[%clk 0:02:59]} 2. g3 {[%clk 0:03:01]}  c5 {[%clk 0:02:49]} 3. Bg2 {[%clk 0:02:59]}  Nc6 {[%clk 0:02:47]} 4. O-O {[%clk 0:02:59]}  e5 {[%clk 0:02:48]} 5. d3 {[%clk 0:02:59]}  Bd6 {[%clk 0:02:48]} 6. a3 {[%clk 0:02:55]}  Nge7 {[%clk 0:02:48]} 7. c4 {[%clk 0:02:55]}  d4 {[%clk 0:02:47]} 8. b4 {[%clk 0:02:55]}  cxb4 {[%clk 0:02:45]} 9. Nbd2 {[%clk 0:02:55]}  bxa3 {[%clk 0:02:39]} 10. Bxa3 {[%clk 0:02:54]}  O-O {[%clk 0:02:35]} 11. Qa4 {[%clk 0:02:48]}  a5 {[%clk 0:02:21]} 12. Bxd6 {[%clk 0:02:44]}  Qxd6 {[%clk 0:02:21]} 13. Ne4 {[%clk 0:02:43]}  Qc7 {[%clk 0:02:21]} 14. Ne1 {[%clk 0:02:36]}  Nb4 {[%clk 0:02:12]} 15. Nc2 {[%clk 0:02:32]}  Bd7 {[%clk 0:02:12]} 16. Qb3 {[%clk 0:02:32]}  Nec6 {[%clk 0:02:12]} 17. Nc5 {[%clk 0:02:22]}  Ra7 {[%clk 0:02:07]} 18. Nxd7 {[%clk 0:02:14]}  Qxd7 {[%clk 0:02:07]} 19. Na3 {[%clk 0:02:13]}  b6 {[%clk 0:02:04]} 20. Nb5 {[%clk 0:02:12]}  Raa8 {[%clk 0:02:00]} 21. f4 {[%clk 0:02:11]}  exf4 {[%clk 0:01:49]} 22. Rxf4 {[%clk 0:02:12]}  Rae8 {[%clk 0:01:49]} 23. Re4 {[%clk 0:02:01]}  Rxe4 {[%clk 0:01:34]} 24. Bxe4 {[%clk 0:02:02]}  g6 {[%clk 0:01:33]} 25. Rf1 {[%clk 0:02:00]}  Kg7 {[%clk 0:01:33]} 26. Qb2 {[%clk 0:01:55]}  Re8 {[%clk 0:01:26]} 27. Rf4 {[%clk 0:01:53]}  f5 {[%clk 0:01:24]} 28. Bg2 {[%clk 0:01:47]}  Qe7 {[%clk 0:00:58]} 29. Bf3 {[%clk 0:01:25]}  Qe5 {[%clk 0:00:43]} 30. h4 {[%clk 0:01:17]}  Rd8 {[%clk 0:00:41]} 31. Kg2 {[%clk 0:01:15]}  h6 {[%clk 0:00:40]} 32. Bxc6 {[%clk 0:01:00]}  Nxc6 {[%clk 0:00:41]} 33. Rf2 {[%clk 0:00:53]}  a4 {[%clk 0:00:35]} 34. Qa3 {[%clk 0:00:48]}  Ra8 {[%clk 0:00:35]} 35. Qb2 {[%clk 0:00:38]}  Qc5 {[%clk 0:00:32]} 36. Na3 {[%clk 0:00:31]}  Qb4 {[%clk 0:00:31]} 37. Qa1 {[%clk 0:00:29]}  Qc3 {[%clk 0:00:30]} 38. Qa2 {[%clk 0:00:25]}  Nb4 {[%clk 0:00:30]} 39. Qb1 {[%clk 0:00:04]}  Qxa3 {[%clk 0:00:29]} 40. g4 {[%clk 0:00:04]}  Qb3 {[%clk 0:00:18]} 41. Qf1 {[%clk 0:00:04]}  Nc2 {[%clk 0:00:18]} 42. Qg1 {[%clk 0:00:02]}  Ne3+ {[%clk 0:00:19]} 43. Kh3 {[%clk 0:00:02]}  fxg4+ {[%clk 0:00:18]} 44. Kh2 {[%clk 0:00:02]}  Qb4 {[%clk 0:00:18]} 45. Qg3 {[%clk 0:00:01]}  Qe7 {[%clk 0:00:17]} 46. h5 {[%clk 0:00:01]}  g5 {[%clk 0:00:15]} 0-1


[Site "https://www.chess.com"]

[Event "Titled Tuesday Blitz April 18 Late 2023"]
[White "Aldokhin, Ivan"]
[Black "Qiao, Cindy"]
[WhiteFideId "24115720"]
[BlackFideId "2620243"]
[WhiteElo "2322"]
[BlackElo "1777"]
[Result "1/2-1/2"]
[Round "11"]
[TimeControl "180+2"]
[Date "2023.04.18"]
[WhiteClock "0:00:06"]
[BlackClock "0:00:55"]

1. e4 {[%clk 0:02:58]}  c5 {[%clk 0:02:59]} 2. Nf3 {[%clk 0:02:58]}  d6 {[%clk 0:03:00]} 3. d4 {[%clk 0:02:58]}  cxd4 {[%clk 0:03:01]} 4. Nxd4 {[%clk 0:02:59]}  Nf6 {[%clk 0:03:01]} 5. Nc3 {[%clk 0:03:00]}  g6 {[%clk 0:02:59]} 6. Bc4 {[%clk 0:02:57]}  Bg7 {[%clk 0:02:58]} 7. Bb3 {[%clk 0:02:57]}  Nc6 {[%clk 0:02:58]} 8. Be3 {[%clk 0:02:56]}  Ng4 {[%clk 0:02:57]} 9. Nxc6 {[%clk 0:02:56]}  bxc6 {[%clk 0:02:57]} 10. Bd2 {[%clk 0:02:54]}  O-O {[%clk 0:02:55]} 11. h3 {[%clk 0:02:49]}  Ne5 {[%clk 0:02:51]} 12. f4 {[%clk 0:02:46]}  Nd7 {[%clk 0:02:51]} 13. O-O {[%clk 0:02:43]}  Qb6+ {[%clk 0:02:49]} 14. Kh1 {[%clk 0:02:43]}  Nc5 {[%clk 0:02:42]} 15. f5 {[%clk 0:02:38]}  Nxb3 {[%clk 0:02:38]} 16. axb3 {[%clk 0:02:37]}  Bb7 {[%clk 0:02:35]} 17. Bg5 {[%clk 0:02:29]}  Rfe8 {[%clk 0:02:31]} 18. f6 {[%clk 0:02:29]}  exf6 {[%clk 0:02:27]} 19. Bxf6 {[%clk 0:02:30]}  d5 {[%clk 0:02:22]} 20. Bxg7 {[%clk 0:02:20]}  Kxg7 {[%clk 0:02:23]} 21. Qf3 {[%clk 0:02:05]}  Qc7 {[%clk 0:02:07]} 22. Rad1 {[%clk 0:01:28]}  dxe4 {[%clk 0:02:01]} 23. Nxe4 {[%clk 0:01:24]}  c5 {[%clk 0:01:52]} 24. Qf6+ {[%clk 0:00:47]}  Kg8 {[%clk 0:01:52]} 25. Nd6 {[%clk 0:00:42]}  Re7 {[%clk 0:01:49]} 26. Nxb7 {[%clk 0:00:28]}  Qxb7 {[%clk 0:01:49]} 27. Rf3 {[%clk 0:00:25]}  Rae8 {[%clk 0:01:46]} 28. Rdf1 {[%clk 0:00:26]}  Qd5 {[%clk 0:01:40]} 29. c4 {[%clk 0:00:25]}  Qb7 {[%clk 0:01:39]} 30. h4 {[%clk 0:00:23]}  h5 {[%clk 0:01:28]} 31. Qg5 {[%clk 0:00:23]}  Re5 {[%clk 0:01:26]} 32. Qf6 {[%clk 0:00:18]}  R5e7 {[%clk 0:01:21]} 33. Qf4 {[%clk 0:00:18]}  Kg7 {[%clk 0:01:19]} 34. R1f2 {[%clk 0:00:18]}  Rf8 {[%clk 0:01:16]} 35. Qd6 {[%clk 0:00:18]}  Qc7 {[%clk 0:01:13]} 36. Qf6+ {[%clk 0:00:16]}  Kg8 {[%clk 0:01:13]} 37. Rf5 {[%clk 0:00:13]}  Re1+ {[%clk 0:01:10]} 38. Rf1 {[%clk 0:00:11]}  Rxf1+ {[%clk 0:01:10]} 39. Rxf1 {[%clk 0:00:11]}  Qg3 {[%clk 0:01:10]} 40. Rf3 {[%clk 0:00:11]}  Qe1+ {[%clk 0:01:07]} 41. Kh2 {[%clk 0:00:11]}  Qe4 {[%clk 0:01:06]} 42. Rf4 {[%clk 0:00:06]}  Qc2 {[%clk 0:01:01]} 43. Rf3 {[%clk 0:00:06]}  Qe4 {[%clk 0:01:00]} 44. Rg3 {[%clk 0:00:06]}  Kh7 {[%clk 0:00:56]} 45. Rf3 {[%clk 0:00:06]}  Kg8 {[%clk 0:00:55]} 1/2-1/2


[Site "https://www.chess.com"]

[Event "Titled Tuesday Blitz April 18 Late 2023"]
[White "Barria Santos, Jose Guilherme"]
[Black "Kleiman, Jake"]
[WhiteFideId "1939300"]
[BlackFideId "2020041"]
[WhiteElo "2266"]
[BlackElo "2615"]
[Result "0-1"]
[Round "11"]
[TimeControl "180+2"]
[Date "2023.04.18"]
[WhiteClock "0:00:01"]
[BlackClock "0:00:14"]

1. e4 {[%clk 0:03:00]}  d6 {[%clk 0:02:53]} 2. d4 {[%clk 0:03:00]}  Nf6 {[%clk 0:02:53]} 3. Nc3 {[%clk 0:03:00]}  e5 {[%clk 0:02:53]} 4. Nf3 {[%clk 0:03:00]}  Nbd7 {[%clk 0:02:53]} 5. Bc4 {[%clk 0:03:00]}  Be7 {[%clk 0:02:54]} 6. O-O {[%clk 0:03:00]}  O-O {[%clk 0:02:54]} 7. Re1 {[%clk 0:03:00]}  c6 {[%clk 0:02:55]} 8. h3 {[%clk 0:03:01]}  h6 {[%clk 0:02:55]} 9. Be3 {[%clk 0:02:57]}  b5 {[%clk 0:02:55]} 10. Bd3 {[%clk 0:02:56]}  Bb7 {[%clk 0:02:55]} 11. dxe5 {[%clk 0:02:16]}  dxe5 {[%clk 0:02:55]} 12. Ne2 {[%clk 0:02:07]}  Qc7 {[%clk 0:02:49]} 13. Ng3 {[%clk 0:02:07]}  Bc5 {[%clk 0:02:50]} 14. Nf5 {[%clk 0:02:05]}  Kh7 {[%clk 0:02:45]} 15. Qe2 {[%clk 0:02:01]}  Rad8 {[%clk 0:02:39]} 16. Rad1 {[%clk 0:02:01]}  Rfe8 {[%clk 0:02:33]} 17. g4 {[%clk 0:01:56]}  Bxe3 {[%clk 0:02:19]} 18. Qxe3 {[%clk 0:01:55]}  Ng8 {[%clk 0:02:18]} 19. g5 {[%clk 0:01:54]}  g6 {[%clk 0:01:52]} 20. gxh6 {[%clk 0:01:36]}  Ndf6 {[%clk 0:01:39]} 21. Ng5+ {[%clk 0:01:34]}  Kh8 {[%clk 0:01:40]} 22. Ng3 {[%clk 0:01:18]}  a6 {[%clk 0:01:29]} 23. h4 {[%clk 0:01:18]}  Ng4 {[%clk 0:01:15]} 24. Qf3 {[%clk 0:01:15]}  N4xh6 {[%clk 0:01:15]} 25. h5 {[%clk 0:01:12]}  Qe7 {[%clk 0:01:09]} 26. hxg6 {[%clk 0:00:39]}  fxg6 {[%clk 0:01:09]} 27. Qe3 {[%clk 0:00:35]}  Rf8 {[%clk 0:01:03]} 28. Kg2 {[%clk 0:00:32]}  Ng4 {[%clk 0:00:53]} 29. Rh1+ {[%clk 0:00:32]}  N8h6 {[%clk 0:00:53]} 30. Rxh6+ {[%clk 0:00:24]}  Nxh6 {[%clk 0:00:54]} 31. Rh1 {[%clk 0:00:24]}  Kg7 {[%clk 0:00:26]} 32. Ne6+ {[%clk 0:00:18]}  Qxe6 {[%clk 0:00:23]} 33. Qxh6+ {[%clk 0:00:18]}  Kf7 {[%clk 0:00:24]} 34. Qh7+ {[%clk 0:00:18]}  Ke8 {[%clk 0:00:24]} 35. Qxb7 {[%clk 0:00:17]}  c5 {[%clk 0:00:20]} 36. Rh7 {[%clk 0:00:16]}  c4 {[%clk 0:00:20]} 37. Be2 {[%clk 0:00:15]}  Rf7 {[%clk 0:00:20]} 38. Rh8+ {[%clk 0:00:13]}  Rf8 {[%clk 0:00:20]} 39. Rxf8+ {[%clk 0:00:13]}  Kxf8 {[%clk 0:00:21]} 40. Qh7 {[%clk 0:00:13]}  Qf6 {[%clk 0:00:20]} 41. Bg4 {[%clk 0:00:11]}  Qg7 {[%clk 0:00:17]} 42. Qh4 {[%clk 0:00:10]}  Rd6 {[%clk 0:00:16]} 43. Qg5 {[%clk 0:00:09]}  Qf6 {[%clk 0:00:15]} 44. Qh6+ {[%clk 0:00:09]}  Kg8 {[%clk 0:00:16]} 45. Qh3 {[%clk 0:00:04]}  Rd2 {[%clk 0:00:15]} 46. Nh1 {[%clk 0:00:01]}  Qf4 {[%clk 0:00:14]} 47. Be6+ {[%clk 0:00:01]}  Kg7 {[%clk 0:00:14]} 0-1


[Site "https://www.chess.com"]

[Event "Titled Tuesday Blitz April 18 Late 2023"]
[White "Petrovic, Aleksa"]
[Black "Spata, German"]
[WhiteFideId "967629"]
[BlackFideId "113026"]
[WhiteElo "2309"]
[BlackElo "2238"]
[Result "0-1"]
[Round "11"]
[TimeControl "180+2"]
[Date "2023.04.18"]
[WhiteClock "0:00:02"]
[BlackClock "0:00:21"]

1. d4 {[%clk 0:02:58]}  d5 {[%clk 0:02:56]} 2. c4 {[%clk 0:02:56]}  c6 {[%clk 0:02:56]} 3. Nc3 {[%clk 0:02:54]}  Nf6 {[%clk 0:02:56]} 4. e3 {[%clk 0:02:54]}  a6 {[%clk 0:02:55]} 5. Nf3 {[%clk 0:02:52]}  b5 {[%clk 0:02:53]} 6. b3 {[%clk 0:02:23]}  Bg4 {[%clk 0:02:52]} 7. Be2 {[%clk 0:02:21]}  e6 {[%clk 0:02:49]} 8. O-O {[%clk 0:02:19]}  Nbd7 {[%clk 0:02:48]} 9. Bb2 {[%clk 0:02:16]}  Bd6 {[%clk 0:02:47]} 10. h3 {[%clk 0:02:15]}  Bh5 {[%clk 0:02:44]} 11. a4 {[%clk 0:02:10]}  b4 {[%clk 0:02:38]} 12. Nb1 {[%clk 0:02:10]}  a5 {[%clk 0:02:38]} 13. c5 {[%clk 0:02:09]}  Bc7 {[%clk 0:02:35]} 14. Nbd2 {[%clk 0:02:07]}  O-O {[%clk 0:02:32]} 15. Qb1 {[%clk 0:01:57]}  Re8 {[%clk 0:02:25]} 16. Qa2 {[%clk 0:01:50]}  Bxf3 {[%clk 0:02:19]} 17. Nxf3 {[%clk 0:01:44]}  e5 {[%clk 0:02:20]} 18. Rae1 {[%clk 0:01:38]}  Rb8 {[%clk 0:02:12]} 19. Ba1 {[%clk 0:01:20]}  Qe7 {[%clk 0:02:01]} 20. Bd1 {[%clk 0:01:19]}  e4 {[%clk 0:01:53]} 21. Nd2 {[%clk 0:01:17]}  Nf8 {[%clk 0:01:52]} 22. f4 {[%clk 0:01:15]}  exf3 {[%clk 0:01:50]} 23. Bxf3 {[%clk 0:01:15]}  Rbd8 {[%clk 0:01:37]} 24. e4 {[%clk 0:01:02]}  Bg3 {[%clk 0:01:25]} 25. Re2 {[%clk 0:00:57]}  dxe4 {[%clk 0:01:24]} 26. Nxe4 {[%clk 0:00:56]}  Nxe4 {[%clk 0:01:25]} 27. Bxe4 {[%clk 0:00:52]}  Qd7 {[%clk 0:01:20]} 28. Qc2 {[%clk 0:00:47]}  Ng6 {[%clk 0:01:18]} 29. Rf3 {[%clk 0:00:28]}  Bb8 {[%clk 0:01:16]} 30. Ref2 {[%clk 0:00:20]}  Re7 {[%clk 0:01:10]} 31. Rf1 {[%clk 0:00:11]}  Rde8 {[%clk 0:01:09]} 32. Bd3 {[%clk 0:00:08]}  Qc7 {[%clk 0:01:09]} 33. g3 {[%clk 0:00:08]}  Re3 {[%clk 0:01:07]} 34. Bc4 {[%clk 0:00:06]}  Rxf3 {[%clk 0:01:01]} 35. Rxf3 {[%clk 0:00:07]}  Rf8 {[%clk 0:01:01]} 36. Qf5 {[%clk 0:00:05]}  Qe7 {[%clk 0:00:59]} 37. Kf2 {[%clk 0:00:04]}  Bc7 {[%clk 0:00:55]} 38. Re3 {[%clk 0:00:04]}  Qd8 {[%clk 0:00:55]} 39. d5 {[%clk 0:00:05]}  cxd5 {[%clk 0:00:54]} 40. Qxd5 {[%clk 0:00:05]}  Qc8 {[%clk 0:00:52]} 41. g4 {[%clk 0:00:04]}  Nf4 {[%clk 0:00:48]} 42. Qf5 {[%clk 0:00:04]}  Qd8 {[%clk 0:00:44]} 43. Kf3 {[%clk 0:00:01]}  Qd1+ {[%clk 0:00:43]} 44. Ke4 {[%clk 0:00:01]}  Qb1+ {[%clk 0:00:36]} 45. Kf3 {[%clk 0:00:01]}  Qh1+ {[%clk 0:00:36]} 46. Kg3 {[%clk 0:00:01]}  Qg2+ {[%clk 0:00:35]} 47. Kh4 {[%clk 0:00:01]}  Ng6+ {[%clk 0:00:34]} 48. Kh5 {[%clk 0:00:01]}  Nf4+ {[%clk 0:00:32]} 49. Kh4 {[%clk 0:00:01]}  Ng6+ {[%clk 0:00:33]} 50. Kh5 {[%clk 0:00:01]}  Qc6 {[%clk 0:00:30]} 51. g5 {[%clk 0:00:01]}  Nf4+ {[%clk 0:00:29]} 52. Kg4 {[%clk 0:00:01]}  Qg2+ {[%clk 0:00:29]} 53. Kh4 {[%clk 0:00:01]}  Ng6+ {[%clk 0:00:28]} 54. Kh5 {[%clk 0:00:01]}  Nf4+ {[%clk 0:00:29]} 55. Kh4 {[%clk 0:00:02]}  Qf2+ {[%clk 0:00:28]} 56. Kg4 {[%clk 0:00:02]}  Ne6 {[%clk 0:00:27]} 57. Bxe6 {[%clk 0:00:01]}  Qg2+ {[%clk 0:00:26]} 58. Kh4 {[%clk 0:00:01]}  fxe6 {[%clk 0:00:23]} 59. Qxe6+ {[%clk 0:00:01]}  Kh8 {[%clk 0:00:23]} 60. Qe4 {[%clk 0:00:01]}  Qf2+ {[%clk 0:00:23]} 61. Kg4 {[%clk 0:00:01]}  h5+ {[%clk 0:00:21]} 62. gxh6 {[%clk 0:00:01]}  Rf4+ {[%clk 0:00:21]} 63. Kh5 {[%clk 0:00:01]}  Rxe4 {[%clk 0:00:21]} 64. Bxg7+ {[%clk 0:00:01]}  Kg8 {[%clk 0:00:21]} 65. Rxe4 {[%clk 0:00:02]}  Qf5+ {[%clk 0:00:21]} 66. Kh4 {[%clk 0:00:02]}  Qxe4+ {[%clk 0:00:21]} 0-1


[Site "https://www.chess.com"]

[Event "Titled Tuesday Blitz April 18 Late 2023"]
[White "Martinez Ramirez, Lennis"]
[Black "Jovic, Stanoje"]
[WhiteFideId "3509079"]
[BlackFideId "905020"]
[WhiteElo "2410"]
[BlackElo "2236"]
[Result "0-1"]
[Round "11"]
[TimeControl "180+2"]
[Date "2023.04.18"]
[WhiteClock "0:00:36"]
[BlackClock "0:00:51"]

1. b3 {[%clk 0:03:00]}  Nf6 {[%clk 0:02:59]} 2. Bb2 {[%clk 0:03:01]}  e6 {[%clk 0:02:59]} 3. g3 {[%clk 0:03:00]}  Be7 {[%clk 0:02:59]} 4. Bg2 {[%clk 0:03:01]}  O-O {[%clk 0:02:59]} 5. Nf3 {[%clk 0:03:01]}  c5 {[%clk 0:02:58]} 6. O-O {[%clk 0:03:01]}  d5 {[%clk 0:02:58]} 7. d3 {[%clk 0:03:02]}  Nc6 {[%clk 0:02:57]} 8. Nbd2 {[%clk 0:03:02]}  b5 {[%clk 0:02:57]} 9. e4 {[%clk 0:03:03]}  a5 {[%clk 0:02:55]} 10. e5 {[%clk 0:03:03]}  Nd7 {[%clk 0:02:55]} 11. c4 {[%clk 0:02:57]}  bxc4 {[%clk 0:02:50]} 12. dxc4 {[%clk 0:02:57]}  Nb6 {[%clk 0:02:48]} 13. cxd5 {[%clk 0:02:56]}  exd5 {[%clk 0:02:43]} 14. Rc1 {[%clk 0:02:37]}  a4 {[%clk 0:02:42]} 15. a3 {[%clk 0:02:29]}  axb3 {[%clk 0:02:39]} 16. Nxb3 {[%clk 0:02:29]}  Na4 {[%clk 0:02:35]} 17. Ba1 {[%clk 0:02:28]}  Be6 {[%clk 0:02:30]} 18. h4 {[%clk 0:02:26]}  h6 {[%clk 0:02:17]} 19. Re1 {[%clk 0:02:25]}  Qb6 {[%clk 0:02:16]} 20. Nfd2 {[%clk 0:02:25]}  c4 {[%clk 0:02:10]} 21. Nxc4 {[%clk 0:02:06]}  dxc4 {[%clk 0:02:08]} 22. Nd4 {[%clk 0:02:06]}  Nxd4 {[%clk 0:02:05]} 23. Bxd4 {[%clk 0:02:05]}  Qb3 {[%clk 0:02:04]} 24. Re3 {[%clk 0:02:02]}  Qxd1+ {[%clk 0:02:04]} 25. Rxd1 {[%clk 0:02:00]}  Rfd8 {[%clk 0:02:04]} 26. Bxa8 {[%clk 0:01:59]}  Rxa8 {[%clk 0:02:02]} 27. Kf1 {[%clk 0:01:35]}  Rc8 {[%clk 0:02:00]} 28. Rc1 {[%clk 0:01:28]}  Bf5 {[%clk 0:01:54]} 29. f3 {[%clk 0:01:23]}  h5 {[%clk 0:01:54]} 30. Kf2 {[%clk 0:01:22]}  Kf8 {[%clk 0:01:54]} 31. Ba1 {[%clk 0:01:05]}  Bc5 {[%clk 0:01:50]} 32. Ke2 {[%clk 0:01:04]}  Bxe3 {[%clk 0:01:50]} 33. Kxe3 {[%clk 0:01:05]}  Bd3 {[%clk 0:01:45]} 34. Bd4 {[%clk 0:01:04]}  Rb8 {[%clk 0:01:42]} 35. g4 {[%clk 0:01:03]}  Rb3 {[%clk 0:01:34]} 36. Kf4 {[%clk 0:01:03]}  hxg4 {[%clk 0:01:27]} 37. fxg4 {[%clk 0:01:02]}  Rxa3 {[%clk 0:01:26]} 38. Re1 {[%clk 0:01:01]}  Ke7 {[%clk 0:01:12]} 39. h5 {[%clk 0:01:00]}  Ke6 {[%clk 0:01:10]} 40. g5 {[%clk 0:00:58]}  Nc3 {[%clk 0:01:09]} 41. Bc5 {[%clk 0:00:44]}  Nd5+ {[%clk 0:01:05]} 42. Kf3 {[%clk 0:00:38]}  Rb3 {[%clk 0:01:00]} 43. Bf8 {[%clk 0:00:37]}  Bg6+ {[%clk 0:00:52]} 44. Kg4 {[%clk 0:00:37]}  Bf5+ {[%clk 0:00:51]} 45. Kh4 {[%clk 0:00:36]}  Rh3# {[%clk 0:00:51]} 0-1


[Site "https://www.chess.com"]

[Event "Titled Tuesday Blitz April 18 Late 2023"]
[White "Shapiro, Viktor"]
[Black "Pinheiro, Iung Alicio de O."]
[WhiteFideId "4175700"]
[BlackFideId "2104350"]
[WhiteElo "2152"]
[BlackElo "2283"]
[Result "1-0"]
[Round "11"]
[TimeControl "180+2"]
[Date "2023.04.18"]
[WhiteClock "0:00:11"]
[BlackClock "0:00:10"]

1. c4 {[%clk 0:03:00]}  c5 {[%clk 0:02:58]} 2. Nc3 {[%clk 0:03:00]}  Nc6 {[%clk 0:02:57]} 3. g3 {[%clk 0:03:01]}  g6 {[%clk 0:02:57]} 4. Bg2 {[%clk 0:03:01]}  Bg7 {[%clk 0:02:58]} 5. Nf3 {[%clk 0:03:00]}  d6 {[%clk 0:02:58]} 6. O-O {[%clk 0:03:00]}  Be6 {[%clk 0:02:57]} 7. d3 {[%clk 0:03:01]}  Qc8 {[%clk 0:02:58]} 8. h4 {[%clk 0:03:00]}  Bh3 {[%clk 0:02:56]} 9. a3 {[%clk 0:03:00]}  h6 {[%clk 0:02:52]} 10. Rb1 {[%clk 0:03:00]}  g5 {[%clk 0:02:48]} 11. Bd2 {[%clk 0:02:42]}  gxh4 {[%clk 0:02:42]} 12. Nxh4 {[%clk 0:02:42]}  Bf6 {[%clk 0:02:42]} 13. Nf3 {[%clk 0:02:37]}  h5 {[%clk 0:02:40]} 14. Ne4 {[%clk 0:02:37]}  h4 {[%clk 0:02:40]} 15. e3 {[%clk 0:02:06]}  hxg3 {[%clk 0:02:36]} 16. fxg3 {[%clk 0:02:06]}  Bxg2 {[%clk 0:02:09]} 17. Kxg2 {[%clk 0:02:06]}  Qh3+ {[%clk 0:02:09]} 18. Kf2 {[%clk 0:02:06]}  Nh6 {[%clk 0:02:10]} 19. Qe2 {[%clk 0:01:46]}  Ng4+ {[%clk 0:02:03]} 20. Ke1 {[%clk 0:01:46]}  Nce5 {[%clk 0:01:51]} 21. Nxe5 {[%clk 0:01:42]}  Bxe5 {[%clk 0:01:43]} 22. Kd1 {[%clk 0:01:23]}  Nf6 {[%clk 0:01:17]} 23. Nxf6+ {[%clk 0:01:13]}  Bxf6 {[%clk 0:01:08]} 24. b4 {[%clk 0:01:09]}  cxb4 {[%clk 0:01:03]} 25. Rxb4 {[%clk 0:01:08]}  b6 {[%clk 0:00:59]} 26. Qf3 {[%clk 0:01:03]}  Rd8 {[%clk 0:00:56]} 27. Rb5 {[%clk 0:01:02]}  Rg8 {[%clk 0:00:46]} 28. Be1 {[%clk 0:00:59]}  Qg4 {[%clk 0:00:44]} 29. Qxg4 {[%clk 0:00:56]}  Rxg4 {[%clk 0:00:45]} 30. Ke2 {[%clk 0:00:50]}  Be5 {[%clk 0:00:41]} 31. d4 {[%clk 0:00:42]}  Bf6 {[%clk 0:00:38]} 32. Rh1 {[%clk 0:00:34]}  Kd7 {[%clk 0:00:31]} 33. Rh7 {[%clk 0:00:32]}  Bg7 {[%clk 0:00:31]} 34. Kf3 {[%clk 0:00:31]}  Rg6 {[%clk 0:00:31]} 35. Rf5 {[%clk 0:00:27]}  Rf8 {[%clk 0:00:27]} 36. g4 {[%clk 0:00:25]}  Ke8 {[%clk 0:00:27]} 37. a4 {[%clk 0:00:20]}  Bf6 {[%clk 0:00:21]} 38. Bh4 {[%clk 0:00:18]}  Bxh4 {[%clk 0:00:16]} 39. Rxh4 {[%clk 0:00:19]}  Rfg8 {[%clk 0:00:17]} 40. a5 {[%clk 0:00:17]}  e6 {[%clk 0:00:10]} 41. Rb5 {[%clk 0:00:16]}  Rf6+ {[%clk 0:00:10]} 42. Ke2 {[%clk 0:00:16]}  Rfg6 {[%clk 0:00:09]} 43. axb6 {[%clk 0:00:16]}  axb6 {[%clk 0:00:10]} 44. Rxb6 {[%clk 0:00:16]}  Rxg4 {[%clk 0:00:10]} 45. Rxg4 {[%clk 0:00:17]}  Rxg4 {[%clk 0:00:11]} 46. Rxd6 {[%clk 0:00:17]}  Ke7 {[%clk 0:00:11]} 47. Rb6 {[%clk 0:00:17]}  Rg2+ {[%clk 0:00:12]} 48. Kd3 {[%clk 0:00:17]}  Ra2 {[%clk 0:00:12]} 49. c5 {[%clk 0:00:17]}  Ra1 {[%clk 0:00:12]} 50. Ke4 {[%clk 0:00:18]}  Rc1 {[%clk 0:00:10]} 51. Rb7+ {[%clk 0:00:18]}  Kf6 {[%clk 0:00:10]} 52. Rd7 {[%clk 0:00:17]}  Rc2 {[%clk 0:00:11]} 53. Kf3 {[%clk 0:00:17]}  Rc3 {[%clk 0:00:11]} 54. Rc7 {[%clk 0:00:17]}  Rc2 {[%clk 0:00:09]} 55. c6 {[%clk 0:00:16]}  Kg6 {[%clk 0:00:09]} 56. Ke4 {[%clk 0:00:15]}  Kf6 {[%clk 0:00:09]} 57. Kf4 {[%clk 0:00:15]}  Rc4 {[%clk 0:00:09]} 58. Kf3 {[%clk 0:00:14]}  Rc2 {[%clk 0:00:09]} 59. Kg3 {[%clk 0:00:13]}  Kg6 {[%clk 0:00:09]} 60. Kf4 {[%clk 0:00:12]}  f6 {[%clk 0:00:09]} 61. Kf3 {[%clk 0:00:11]}  Rc3 {[%clk 0:00:09]} 62. Ke2 {[%clk 0:00:11]}  Kf5 {[%clk 0:00:10]} 63. Kd2 {[%clk 0:00:11]}  Rc4 {[%clk 0:00:10]} 64. Kd3 {[%clk 0:00:11]}  Rc1 {[%clk 0:00:11]} 65. Rc8 {[%clk 0:00:12]}  Rd1+ {[%clk 0:00:09]} 66. Kc4 {[%clk 0:00:12]}  Rc1+ {[%clk 0:00:10]} 67. Kb5 {[%clk 0:00:12]}  Ke4 {[%clk 0:00:09]} 68. Re8 {[%clk 0:00:11]}  Kd5 {[%clk 0:00:08]} 69. Rd8+ {[%clk 0:00:11]}  Ke4 {[%clk 0:00:09]} 70. Kb6 {[%clk 0:00:11]}  Rb1+ {[%clk 0:00:07]} 71. Kc7 {[%clk 0:00:11]}  Kxe3 {[%clk 0:00:07]} 72. Rd6 {[%clk 0:00:12]}  e5 {[%clk 0:00:07]} 73. d5 {[%clk 0:00:11]}  f5 {[%clk 0:00:07]} 74. Re6 {[%clk 0:00:11]}  e4 {[%clk 0:00:07]} 75. d6 {[%clk 0:00:12]}  f4 {[%clk 0:00:07]} 76. d7 {[%clk 0:00:12]}  Rd1 {[%clk 0:00:08]} 77. Rd6 {[%clk 0:00:12]}  Rxd6 {[%clk 0:00:07]} 78. Kxd6 {[%clk 0:00:12]}  f3 {[%clk 0:00:08]} 79. d8=Q {[%clk 0:00:13]}  f2 {[%clk 0:00:08]} 80. Qf6 {[%clk 0:00:13]}  Ke2 {[%clk 0:00:08]} 81. Qb2+ {[%clk 0:00:12]}  Kf3 {[%clk 0:00:08]} 82. Qf6+ {[%clk 0:00:11]}  Ke2 {[%clk 0:00:08]} 83. Kd5 {[%clk 0:00:11]}  e3 {[%clk 0:00:08]} 84. Kd4 {[%clk 0:00:11]}  Kd2 {[%clk 0:00:07]} 85. Qf4 {[%clk 0:00:11]}  Kd1 {[%clk 0:00:07]} 86. Kxe3 {[%clk 0:00:09]}  f1=Q {[%clk 0:00:07]} 87. Qxf1+ {[%clk 0:00:10]}  Kc2 {[%clk 0:00:08]} 88. c7 {[%clk 0:00:10]}  Kb2 {[%clk 0:00:09]} 89. c8=Q {[%clk 0:00:10]}  Ka3 {[%clk 0:00:10]} 90. Qfa6+ {[%clk 0:00:10]}  Kb2 {[%clk 0:00:10]} 91. Qab7+ {[%clk 0:00:11]}  Ka3 {[%clk 0:00:10]} 92. Qca8# {[%clk 0:00:11]} 1-0


[Site "https://www.chess.com"]

[Event "Titled Tuesday Blitz April 18 Late 2023"]
[White "Di Berardino, Diego Rafael"]
[Black "Seletsky, Grigory"]
[WhiteFideId "2105446"]
[BlackFideId "14112191"]
[WhiteElo "2432"]
[BlackElo "2490"]
[Result "1-0"]
[Round "11"]
[TimeControl "180+2"]
[Date "2023.04.18"]
[WhiteClock "0:01:23"]
[BlackClock "0:00:29"]

1. e4 {[%clk 0:03:00]}  c6 {[%clk 0:02:59]} 2. d4 {[%clk 0:02:57]}  d5 {[%clk 0:02:59]} 3. Nc3 {[%clk 0:02:58]}  dxe4 {[%clk 0:02:58]} 4. Nxe4 {[%clk 0:02:59]}  Nd7 {[%clk 0:02:59]} 5. Nf3 {[%clk 0:02:56]}  Ngf6 {[%clk 0:02:58]} 6. Nxf6+ {[%clk 0:02:57]}  Nxf6 {[%clk 0:02:58]} 7. Bc4 {[%clk 0:02:57]}  Bf5 {[%clk 0:02:52]} 8. Qe2 {[%clk 0:02:55]}  e6 {[%clk 0:02:52]} 9. Bg5 {[%clk 0:02:54]}  Be7 {[%clk 0:02:51]} 10. O-O-O {[%clk 0:02:54]}  h6 {[%clk 0:02:49]} 11. Bh4 {[%clk 0:02:51]}  Ne4 {[%clk 0:02:24]} 12. Bxe7 {[%clk 0:02:46]}  Qxe7 {[%clk 0:02:25]} 13. Ne5 {[%clk 0:02:47]}  Nd6 {[%clk 0:02:22]} 14. Bb3 {[%clk 0:02:44]}  O-O-O {[%clk 0:02:18]} 15. g4 {[%clk 0:02:41]}  Be4 {[%clk 0:02:15]} 16. f3 {[%clk 0:02:39]}  Bh7 {[%clk 0:02:15]} 17. h4 {[%clk 0:02:13]}  Rhe8 {[%clk 0:02:04]} 18. Kb1 {[%clk 0:02:05]}  Qc7 {[%clk 0:01:53]} 19. h5 {[%clk 0:02:02]}  c5 {[%clk 0:01:47]} 20. Ka1 {[%clk 0:01:58]}  f6 {[%clk 0:01:33]} 21. dxc5 {[%clk 0:01:51]}  Qxc5 {[%clk 0:01:29]} 22. Nd3 {[%clk 0:01:43]}  Qc7 {[%clk 0:01:18]} 23. Nf4 {[%clk 0:01:41]}  e5 {[%clk 0:01:06]} 24. Ne6 {[%clk 0:01:41]}  Rxe6 {[%clk 0:00:58]} 25. Bxe6+ {[%clk 0:01:40]}  Kb8 {[%clk 0:00:49]} 26. Rd2 {[%clk 0:01:38]}  Bg8 {[%clk 0:00:42]} 27. Bxg8 {[%clk 0:01:34]}  Rxg8 {[%clk 0:00:42]} 28. Rhd1 {[%clk 0:01:34]}  Rd8 {[%clk 0:00:39]} 29. Rd5 {[%clk 0:01:27]}  a6 {[%clk 0:00:29]} 30. Qd2 {[%clk 0:01:23]} 1-0


[Site "https://www.chess.com"]